fUSD/lending_fUSD_20240527
["ID","MTS","AMOUNT","RATE_DAILY","PERIOD"]
[328092623,1716845432093,-366.993319,0.00017086,2]
[328092624,1716845432103,-1040.2525114,0.00017172,2]
[328092625,1716845432113,-10572.05027799,0.00017259,2]
[328092626,1716845432123,-410.74423217,0.00019451,2]
[328092627,1716845432132,-2943.15825709,0.0002,2]
[328092628,1716845432161,-299.68523595,0.0002,2]
[328092629,1716845432173,-664.57727663,0.0002,2]
[328092630,1716845432234,-1283.41859041,0.0002,2]
[328092631,1716845432243,-499.99,0.0002,2]
[328092632,1716845432253,-216.59140959,0.0002,2]
[328092633,1716845432265,-146.17859041,0.0002,2]
[328092634,1716845432275,-155.0,0.00021917,2]
[328092635,1716845432286,-204.67,0.00021918,2]
[328092636,1716845432295,-56.65104099,0.00023309,2]
[328092637,1716845432321,-411.96895901,0.00023309,2]
[328092638,1716845432331,-4763.44,0.00024561,2]
[328092639,1716845432340,-468.75,0.0002478,2]
[328092640,1716845432349,-15019.88,0.00024799,2]
[328092641,1716845432358,-250.0,0.00024908,2]
[328092642,1716845432367,-1000.0,0.00024923,2]
[328092643,1716845432377,-159.81,0.0002499,2]
[328092644,1716845432386,-159.81,0.00025003,2]
[328092645,1716845432396,-159.81,0.00025015,2]
[328092646,1716845432406,-164.18,0.00025022,2]
[328092647,1716845432416,-1393.58,0.00025024,2]
[328092648,1716845432425,-159.81,0.00025028,2]
[328092649,1716845432434,-159.81,0.0002504,2]
[328092650,1716845432443,-159.81,0.00025053,2]
[328092651,1716845432453,-648.01,0.00025058,2]
[328092652,1716845432462,-159.81,0.00025065,2]
[328092653,1716845432471,-159.81,0.00025078,2]
[328092654,1716845432480,-159.81,0.0002509,2]
[328092655,1716845432490,-159.81,0.00025103,2]
[328092656,1716845432500,-159.81,0.00025115,2]
[328092657,1716845432510,-831.23,0.00025191,2]
[328092658,1716845432520,-250.0,0.00025203,2]
[328092659,1716845432531,-172.6,0.00025221,2]
[328092660,1716845432540,-154.20664879,0.00025223,2]
[328092661,1716845432550,-660.7,0.00025226,2]
[328092662,1716845432559,-2000.0,0.00025266,2]
[328092663,1716845432568,-501.4,0.00025397,2]
[328092664,1716845432578,-155.99062106,0.0002547,2]
[328092665,1716845432587,-183.17969111,0.00025571,2]
[328092666,1716845432596,-468.62,0.00025573,2]
[328092667,1716845432605,-1000.0,0.0002593,2]
[328092668,1716845432616,-151.94614816,0.00026009,2]
[328092669,1716845432626,-17235.03055816,0.00026162,2]
[328092670,1716845432636,-1000.0,0.00026385,2]
[328092671,1716845432645,-155.99062106,0.00026444,2]
[328092672,1716845432655,-188.05707086,0.00026551,2]
[328092673,1716845432665,-218.45,0.00026838,2]
[328092674,1716845432675,-7713.612599,0.00027,2]
[328092675,1716845432684,-167.0,0.00027037,2]
[328092676,1716845432694,-160.107484,0.00027641,2]
[328092677,1716845432703,-468.62,0.00027837,2]
[328092678,1716845432713,-155.99062106,0.00027838,2]
[328092679,1716845432722,-155.99062106,0.00027864,2]
[328092680,1716845432731,-831.23,0.0002793,2]
[328092681,1716845432741,-176.39255073,0.0002822,4]
[328092682,1716845432750,-154.20664879,0.00028242,2]
[328092683,1716845432759,-660.7,0.0002838,2]
[328092684,1716845432769,-501.4,0.00028572,2]
[328092685,1716845432780,-210.9141,0.00028599,2]
[328092686,1716845432789,-257.1568,0.00028599,2]
[328092687,1716845432799,-3743.1689,0.00028599,2]
[328092688,1716845432808,-5886.51372385,0.00028599,2]
[328092689,1716845432817,-2121.3675,0.00028698,2]
[328092690,1716845432827,-2778.2712,0.00028698,2]
[328092691,1716845432836,-37303.4845,0.00028698,2]
[328092692,1716845432846,-7500.0,0.00028699,2]
[328092693,1716845432856,-160.84571027,0.00028699,2]
[328092694,1716845432865,-6740.72097999,0.00028699,2]
[328092695,1716845432877,-1661.1859856,0.00028699,2]
[328092696,1716845432888,-601.41403316,0.00028699,2]
[328092697,1716845432918,-270.43870298,0.00028699,2]
[328092698,1716845432932,-382.31751455,0.00028699,2]
[328092699,1716845432943,-1120.97999995,0.00028699,2]
[328092700,1716845432955,-1765.98400049,0.00028699,2]
[328092701,1716845432967,-9582.61054613,0.00028699,2]
[328092702,1716845432976,-1467.62875762,0.00028699,2]
[328092703,1716845432986,-311.72039902,0.00028699,2]
[328092704,1716845432996,-4575.84012937,0.00028796,2]
[328092705,1716845433005,-156.755618,0.00028796,2]
[328092706,1716845433015,-203.91187623,0.00028796,2]
[328092707,1716845433025,-271.32,0.00028796,2]
[328092708,1716845433036,-1376.24495973,0.00028796,2]
[328092709,1716845433046,-155.0,0.00028797,2]
[328092710,1716845433056,-155.91493806,0.00028797,2]
[328092711,1716845433070,-198.76885415,0.00028797,2]
[328092712,1716845433086,-1185.96692507,0.00028797,2]
[328092713,1716845433100,-5045.12985729,0.00028797,2]
[328092714,1716845433113,-155.51434087,0.00028797,2]
[328092715,1716845433127,-155.0,0.00028797,2]
[328092716,1716845433139,-234.22233037,0.00028797,2]
[328092717,1716845433149,-643.9738315,0.00028797,2]
[328092718,1716845433163,-405.93422196,0.00028797,2]
[328092719,1716845433176,-155.14783748,0.00028797,2]
[328092720,1716845433188,-155.15326466,0.00028797,2]
[328092721,1716845433200,-409.70150583,0.00028797,2]
[328092722,1716845433212,-170.67008826,0.00028797,2]
[328092723,1716845433224,-155.0,0.00028797,2]
[328092724,1716845433237,-281.74618343,0.00028797,2]
[328092725,1716845433249,-572.27447341,0.00028798,7]
[328092726,1716845433263,-111476.16500427,0.00028798,2]
[328092727,1716845433276,-100000.0,0.00028799,2]
[328092728,1716845433289,-17321.25,0.00028799,2]
[328092729,1716845433301,-30082.3153,0.00028799,2]
[328092730,1716845433313,-1000.0,0.00028799,2]
[328092731,1716845433323,-500.0,0.00028799,2]
[328092732,1716845433335,-2479.275,0.00028799,2]
[328092733,1716845433347,-224.10469776,0.00028889,2]
[328092734,1716845433358,-1000.0,0.00028898,5]
[328092735,1716845433369,-238859.8854,0.00028899,2]
[328092736,1716845433382,-163.58,0.00028904,2]
[328092737,1716845433394,-151.94614816,0.0002901,2]
[328092738,1716845433405,-212.64301334,0.00029097,2]
[328092739,1716845433417,-224.27254649,0.00029097,2]
[328092740,1716845433428,-4905.32,0.00029099,2]
[328092741,1716845433438,-5886.51372384,0.00029117,2]
[328092742,1716845433448,-22125.65176282,0.00029206,2]
[328092743,1716845433459,-1467.62875762,0.00029342,2]
[328092744,1716845433471,-524.71,0.00029397,2]
[328092745,1716845433483,-200.0,0.000295,10]
[328092746,1716845433495,-500.0,0.000296,10]
[328092747,1716845433506,-5886.51372384,0.00029634,2]
[328092748,1716845433517,-800.0,0.000297,10]
[328092749,1716845433529,-22125.65176282,0.00029712,2]
[328092750,1716845433540,-206.18,0.00029753,2]
[328092751,1716845433552,-150.0,0.00029753,2]
[328092752,1716845433564,-150.0,0.00029753,2]
[328092753,1716845433576,-1100.0,0.000298,10]
[328092754,1716845433588,-1541.87079,0.0002983,2]
[328092755,1716845433598,-151.94614816,0.00029887,2]
[328092756,1716845433608,-1400.0,0.000299,10]
[328092757,1716845433618,-1467.62875762,0.00029984,2]
[328092758,1716845433628,-1000.0,0.00029985,2]
[328092759,1716845433638,-1000.0,0.00029985,2]
[328092760,1716845433650,-1000.0,0.00029985,2]
[328092761,1716845433662,-1000.0,0.00029985,2]
[328092762,1716845433673,-1000.0,0.00029985,2]
[328092763,1716845433685,-1000.0,0.00029985,2]
[328092764,1716845433697,-1000.0,0.00029985,2]
[328092765,1716845433708,-1000.0,0.00029985,2]
[328092766,1716845433718,-1000.0,0.00029985,2]
[328092767,1716845433730,-1000.0,0.00029985,2]
[328092768,1716845433742,-1000.0,0.00029985,2]
[328092769,1716845433753,-1000.0,0.00029985,2]
[328092770,1716845433765,-1000.0,0.00029985,2]
[328092771,1716845433777,-1000.0,0.00029985,2]
[328092772,1716845433790,-1000.0,0.00029985,2]
[328092773,1716845433800,-1000.0,0.00029985,2]
[328092774,1716845433810,-1000.0,0.00029985,2]
[328092775,1716845433820,-1000.0,0.00029985,2]
[328092776,1716845433830,-1000.0,0.00029985,2]
[328092777,1716845433840,-1000.0,0.00029985,2]
[328092778,1716845433851,-1000.0,0.00029985,2]
[328092779,1716845433862,-1000.0,0.00029985,2]
[328092780,1716845433875,-1000.0,0.00029985,2]
[328092781,1716845433886,-1000.0,0.00029985,2]
[328092782,1716845433897,-1000.0,0.00029985,2]
[328092783,1716845433907,-1000.0,0.00029985,2]
[328092784,1716845433918,-1000.0,0.00029985,2]
[328092785,1716845433928,-1000.0,0.00029985,2]
[328092786,1716845433939,-207.3109,0.00029985,2]
[328092787,1716845433950,-500.0,0.00029985,2]
[328092788,1716845433960,-500.0,0.00029985,2]
[328092789,1716845433971,-500.0,0.00029985,2]
[328092790,1716845433981,-500.0,0.00029985,2]
[328092791,1716845433991,-517.0896,0.00029985,2]
[328092792,1716845434002,-1022.0,0.0003,2]
[328092793,1716845434012,-150.44,0.0003,2]
[328092794,1716845434023,-150.0,0.0003,2]
[328092795,1716845434035,-300.0,0.0003,2]
[328092796,1716845434046,-524.71,0.0003,2]
[328092797,1716845434057,-150.0,0.0003,2]
[328092798,1716845434068,-704.36,0.0003,2]
[328092799,1716845434084,-150.0,0.0003,2]
[328092800,1716845434095,-524.71,0.0003,2]
[328092801,1716845434106,-150.0,0.0003,2]
[328092802,1716845434118,-150.0,0.0003,2]
[328092803,1716845434129,-524.71,0.0003,2]
[328092804,1716845434140,-150.0,0.0003,2]
[328092805,1716845434153,-524.71,0.0003,2]
[328092806,1716845434163,-150.0,0.0003,2]
[328092807,1716845434174,-150.0,0.0003,2]
[328092808,1716845434184,-176.12813558,0.00030036,2]
[328092809,1716845434195,-162.10824669,0.00030036,2]
[328092810,1716845434206,-11801.41938788,0.00030036,2]
[328092811,1716845434217,-1906.79691956,0.00030036,2]
[328092812,1716845434228,-7404.05,0.00030063,5]
[328092813,1716845434239,-7221.54,0.00030078,5]
[328092814,1716845434250,-151.4,0.00030092,2]
[328092815,1716845434261,-155.0,0.00030099,4]
[328092816,1716845434272,-487.0,0.000301,14]
[328092817,1716845434285,-344.0,0.000301,2]
[328092818,1716845434296,-202.029663,0.000301,6]
[328092819,1716845434307,-150.0,0.000301,6]
[328092820,1716845434318,-468.62,0.00030101,2]
[328092821,1716845434329,-7283.48,0.00030102,5]
[328092822,1716845434340,-1000.0,0.00030121,5]
[328092823,1716845434351,-432.0,0.00030122,5]
[328092824,1716845434362,-150.0,0.00030135,10]
[328092825,1716845434372,-150.0,0.00030135,10]
[328092826,1716845434382,-150.0,0.00030135,10]
[328092827,1716845434392,-150.0,0.00030135,10]
[328092828,1716845434403,-150.0,0.00030135,10]
[328092829,1716845434414,-150.0,0.00030135,10]
[328092830,1716845434424,-150.0,0.00030135,10]
[328092831,1716845434436,-150.0,0.00030135,10]
[328092832,1716845434446,-150.0,0.00030135,10]
[328092833,1716845434457,-150.0,0.00030135,10]
[328092834,1716845434468,-150.0,0.00030135,10]
[328092835,1716845434479,-208.37659574,0.00030135,2]
[328092836,1716845434490,-361.26021347,0.00030135,2]
[328092837,1716845434501,-1000.0,0.00030135,5]
[328092838,1716845434511,-1000.0,0.00030135,5]
[328092839,1716845434522,-1000.0,0.00030135,5]
[328092840,1716845434533,-922.71783191,0.00030135,5]
[328092841,1716845434544,-7487.69,0.00030136,5]
[328092842,1716845434555,-150.0,0.00030136,10]
[328092843,1716845434566,-150.0,0.00030136,10]
[328092844,1716845434576,-150.0,0.00030136,10]
[328092845,1716845434587,-150.0,0.00030136,10]
[328092846,1716845434597,-150.0,0.00030136,10]
[328092847,1716845434608,-150.0,0.00030136,10]
[328092848,1716845434618,-150.0,0.00030136,10]
[328092849,1716845434629,-150.0,0.00030136,10]
[328092850,1716845434639,-150.0,0.00030136,10]
[328092851,1716845434650,-150.0,0.00030136,10]
[328092852,1716845434661,-150.0,0.00030136,10]
[328092853,1716845434672,-500.0,0.00030136,6]
[328092854,1716845434683,-500.0,0.00030136,6]
[328092855,1716845434693,-500.0,0.00030136,6]
[328092856,1716845434704,-500.0,0.00030136,6]
[328092857,1716845434715,-500.0,0.00030136,6]
[328092858,1716845434726,-500.0,0.00030136,6]
[328092859,1716845434737,-500.0,0.00030136,6]
[328092860,1716845434747,-500.0,0.00030136,6]
[328092861,1716845434758,-500.0,0.00030136,6]
[328092862,1716845434769,-500.0,0.00030136,6]
[328092863,1716845434780,-500.0,0.00030136,6]
[328092864,1716845434791,-500.0,0.00030136,6]
[328092865,1716845434802,-500.0,0.00030136,6]
[328092866,1716845434812,-500.0,0.00030136,6]
[328092867,1716845434823,-500.0,0.00030136,6]
[328092868,1716845434833,-500.0,0.00030136,6]
[328092869,1716845434843,-500.0,0.00030136,6]
[328092870,1716845434854,-500.0,0.00030136,6]
[328092871,1716845434865,-500.0,0.00030136,6]
[328092872,1716845434875,-221.59729945,0.00030136,6]
[328092873,1716845434886,-500.0,0.00030136,6]
[328092874,1716845434896,-500.0,0.00030136,6]
[328092875,1716845434907,-500.0,0.00030136,6]
[328092876,1716845434917,-500.0,0.00030136,6]
[328092877,1716845434927,-500.0,0.00030136,6]
[328092878,1716845434937,-500.0,0.00030136,6]
[328092879,1716845434947,-500.0,0.00030136,6]
[328092880,1716845434957,-500.0,0.00030136,6]
[328092881,1716845434967,-500.0,0.00030136,6]
[328092882,1716845434977,-376.2293966,0.00030136,6]
[328092883,1716845434989,-500.0,0.00030136,6]
[328092884,1716845434999,-500.0,0.00030136,6]
[328092885,1716845435009,-500.0,0.00030136,6]
[328092886,1716845435019,-500.0,0.00030136,6]
[328092887,1716845435029,-500.0,0.00030136,6]
[328092888,1716845435040,-500.0,0.00030136,6]
[328092889,1716845435050,-500.0,0.00030136,6]
[328092890,1716845435060,-500.0,0.00030136,6]
[328092891,1716845435071,-499.44552825,0.00030136,6]
[328092892,1716845435086,-500.0,0.00030136,6]
[328092893,1716845435097,-500.0,0.00030136,6]
[328092894,1716845435107,-500.0,0.00030136,6]
[328092895,1716845435118,-500.0,0.00030136,6]
[328092896,1716845435129,-500.0,0.00030136,6]
[328092897,1716845435139,-500.0,0.00030136,6]
[328092898,1716845435151,-500.0,0.00030136,6]
[328092899,1716845435162,-500.0,0.00030136,6]
[328092900,1716845435172,-500.0,0.00030136,6]
[328092901,1716845435183,-463.85808448,0.00030136,6]
[328092902,1716845435193,-500.0,0.00030136,6]
[328092903,1716845435203,-500.0,0.00030136,6]
[328092904,1716845435213,-162.02474233,0.00030136,6]
[328092905,1716845435223,-500.0,0.00030136,6]
[328092906,1716845435233,-500.0,0.00030136,6]
[328092907,1716845435244,-500.0,0.00030136,6]
[328092908,1716845435254,-500.0,0.00030136,6]
[328092909,1716845435264,-500.0,0.00030136,6]
[328092910,1716845435275,-500.0,0.00030136,6]
[328092911,1716845435286,-500.0,0.00030136,6]
[328092912,1716845435296,-595.80556549,0.00030136,6]
[328092913,1716845435307,-500.0,0.00030136,6]
[328092914,1716845435318,-500.0,0.00030136,6]
[328092915,1716845435328,-500.0,0.00030136,6]
[328092916,1716845435604,-500.0,0.00030136,6]
[328092917,1716845435626,-500.0,0.00030136,6]
[328092918,1716845435640,-500.0,0.00030136,6]
[328092919,1716845435649,-500.0,0.00030136,6]
[328092920,1716845435658,-500.0,0.00030136,6]
[328092921,1716845435668,-500.0,0.00030136,6]
[328092922,1716845435677,-500.0,0.00030136,6]
[328092923,1716845435687,-500.0,0.00030136,6]
[328092924,1716845435697,-500.0,0.00030136,6]
[328092925,1716845435706,-500.0,0.00030136,6]
[328092926,1716845435716,-500.0,0.00030136,6]
[328092927,1716845435725,-500.0,0.00030136,6]
[328092928,1716845435734,-500.0,0.00030136,6]
[328092929,1716845435743,-500.0,0.00030136,6]
[328092930,1716845435753,-260.18602822,0.00030136,6]
[328092931,1716845435762,-500.0,0.00030136,6]
[328092932,1716845435772,-500.0,0.00030136,6]
[328092933,1716845435781,-500.0,0.00030136,6]
[328092934,1716845435791,-500.0,0.00030136,6]
[328092935,1716845435800,-500.0,0.00030136,6]
[328092936,1716845435810,-500.0,0.00030136,6]
[328092937,1716845435819,-500.0,0.00030136,6]
[328092938,1716845435828,-500.0,0.00030136,6]
[328092939,1716845435838,-500.0,0.00030136,6]
[328092940,1716845435847,-500.0,0.00030136,6]
[328092941,1716845435857,-500.0,0.00030136,6]
[328092942,1716845435866,-443.04463408,0.00030136,6]
[328092943,1716845435875,-500.0,0.00030136,6]
[328092944,1716845435884,-500.0,0.00030136,6]
[328092945,1716845435894,-500.0,0.00030136,6]
[328092946,1716845435903,-500.0,0.00030136,6]
[328092947,1716845435912,-500.0,0.00030136,6]
[328092948,1716845435921,-541.21,0.00030136,6]
[328092949,1716845435930,-500.0,0.00030136,6]
[328092950,1716845435939,-500.0,0.00030136,6]
[328092951,1716845435949,-500.0,0.00030136,6]
[328092952,1716845435958,-500.0,0.00030136,6]
[328092953,1716845435967,-500.0,0.00030136,6]
[328092954,1716845435977,-500.0,0.00030136,6]
[328092955,1716845435986,-500.0,0.00030136,6]
[328092956,1716845435995,-502.8133515,0.00030136,6]
[328092957,1716845436004,-500.0,0.00030136,6]
[328092958,1716845436013,-500.0,0.00030136,6]
[328092959,1716845436023,-500.0,0.00030136,6]
[328092960,1716845436033,-500.0,0.00030136,6]
[328092961,1716845436042,-500.0,0.00030136,6]
[328092962,1716845436051,-500.0,0.00030136,6]
[328092963,1716845436061,-500.0,0.00030136,6]
[328092964,1716845436070,-500.0,0.00030136,6]
[328092965,1716845436085,-500.0,0.00030136,6]
[328092966,1716845436095,-500.0,0.00030136,6]
[328092967,1716845436104,-500.0,0.00030136,6]
[328092968,1716845436114,-500.0,0.00030136,6]
[328092969,1716845436126,-500.0,0.00030136,6]
[328092970,1716845436136,-500.0,0.00030136,6]
[328092971,1716845436146,-500.0,0.00030136,6]
[328092972,1716845436160,-500.0,0.00030136,6]
[328092973,1716845436170,-500.0,0.00030136,6]
[328092974,1716845436180,-500.0,0.00030136,6]
[328092975,1716845436189,-500.0,0.00030136,6]
[328092976,1716845436198,-500.0,0.00030136,6]
[328092977,1716845436208,-492.3,0.00030136,6]
[328092978,1716845436216,-500.0,0.00030136,6]
[328092979,1716845436225,-500.0,0.00030136,6]
[328092980,1716845436234,-500.0,0.00030136,6]
[328092981,1716845436244,-500.0,0.00030136,6]
[328092982,1716845436253,-500.0,0.00030136,6]
[328092983,1716845436263,-500.0,0.00030136,6]
[328092984,1716845436271,-500.0,0.00030136,6]
[328092985,1716845436280,-500.0,0.00030136,6]
[328092986,1716845436292,-500.0,0.00030136,6]
[328092987,1716845436303,-500.0,0.00030136,6]
[328092988,1716845436312,-500.0,0.00030136,6]
[328092989,1716845436322,-500.0,0.00030136,6]
[328092990,1716845436331,-500.0,0.00030136,6]
[328092991,1716845436340,-500.0,0.00030136,6]
[328092992,1716845436349,-500.0,0.00030136,6]
[328092993,1716845436358,-500.0,0.00030136,6]
[328092994,1716845436367,-500.0,0.00030136,6]
[328092995,1716845436377,-564.91,0.00030136,6]
[328092996,1716845436386,-500.0,0.00030136,6]
[328092997,1716845436395,-500.0,0.00030136,6]
[328092998,1716845436404,-500.0,0.00030136,6]
[328092999,1716845436414,-500.0,0.00030136,6]
[328093000,1716845436423,-500.0,0.00030136,6]
[328093001,1716845436432,-500.0,0.00030136,6]
[328093002,1716845436441,-500.0,0.00030136,6]
[328093003,1716845436451,-500.0,0.00030136,6]
[328093004,1716845436460,-500.0,0.00030136,6]
[328093005,1716845436469,-500.0,0.00030136,6]
[328093006,1716845436478,-151.0,0.00030136,7]
[328093007,1716845436488,-500.0,0.00030136,6]
[328093008,1716845436498,-500.0,0.00030136,6]
[328093009,1716845436507,-500.0,0.00030136,6]
[328093010,1716845436516,-151.0,0.00030136,7]
[328093011,1716845436525,-500.0,0.00030136,6]
[328093012,1716845436536,-500.0,0.00030136,6]
[328093013,1716845436545,-500.0,0.00030136,6]
[328093014,1716845436555,-151.0,0.00030136,7]
[328093015,1716845436564,-500.0,0.00030136,6]
[328093016,1716845436573,-284.32416,0.00030136,7]
[328093017,1716845436582,-500.0,0.00030136,6]
[328093018,1716845436591,-500.0,0.00030136,6]
[328093019,1716845436600,-500.0,0.00030136,6]
[328093020,1716845436610,-500.0,0.00030136,6]
[328093021,1716845436619,-500.0,0.00030136,6]
[328093022,1716845436629,-500.0,0.00030136,6]
[328093023,1716845436638,-208.32183277,0.00030136,6]
[328093024,1716845436647,-500.0,0.00030136,6]
[328093025,1716845436657,-500.0,0.00030136,6]
[328093026,1716845436666,-500.0,0.00030136,6]
[328093027,1716845436676,-500.0,0.00030136,6]
[328093028,1716845436685,-500.0,0.00030136,6]
[328093029,1716845436694,-558.15,0.00030136,6]
[328093030,1716845436704,-500.0,0.00030136,6]
[328093031,1716845436713,-500.0,0.00030136,6]
[328093032,1716845436722,-500.0,0.00030136,6]
[328093033,1716845436732,-500.0,0.00030136,6]
[328093034,1716845436741,-500.0,0.00030136,6]
[328093035,1716845436751,-505.84073672,0.00030136,6]
[328093036,1716845436760,-500.0,0.00030136,6]
[328093037,1716845436769,-500.0,0.00030136,6]
[328093038,1716845436779,-500.0,0.00030136,6]
[328093039,1716845436789,-500.0,0.00030136,6]
[328093040,1716845436799,-500.0,0.00030136,6]
[328093041,1716845436808,-500.0,0.00030136,6]
[328093042,1716845436817,-500.0,0.00030136,6]
[328093043,1716845436827,-208.94433388,0.00030136,6]
[328093044,1716845436836,-500.0,0.00030136,6]
[328093045,1716845436845,-500.0,0.00030136,6]
[328093046,1716845436854,-500.0,0.00030136,6]
[328093047,1716845436863,-500.0,0.00030136,6]
[328093048,1716845436873,-500.0,0.00030136,6]
[328093049,1716845436882,-500.0,0.00030136,6]
[328093050,1716845436892,-500.0,0.00030136,6]
[328093051,1716845436901,-500.0,0.00030136,6]
[328093052,1716845436910,-500.0,0.00030136,6]
[328093053,1716845436920,-500.0,0.00030136,6]
[328093054,1716845436929,-500.0,0.00030136,6]
[328093055,1716845436938,-500.0,0.00030136,6]
[328093056,1716845436947,-500.0,0.00030136,6]
[328093057,1716845436956,-500.0,0.00030136,6]
[328093058,1716845436965,-500.0,0.00030136,6]
[328093059,1716845436973,-500.0,0.00030136,6]
[328093060,1716845436982,-500.0,0.00030136,6]
[328093061,1716845436990,-500.0,0.00030136,6]
[328093062,1716845436999,-500.0,0.00030136,6]
[328093063,1716845437008,-500.0,0.00030136,6]
[328093064,1716845437017,-500.0,0.00030136,6]
[328093065,1716845437026,-500.0,0.00030136,6]
[328093066,1716845437036,-500.0,0.00030136,6]
[328093067,1716845437045,-500.0,0.00030136,6]
[328093068,1716845437054,-500.0,0.00030136,6]
[328093069,1716845437063,-500.0,0.00030136,6]
[328093070,1716845437072,-500.0,0.00030136,6]
[328093071,1716845437085,-500.0,0.00030136,6]
[328093072,1716845437094,-500.0,0.00030136,6]
[328093073,1716845437102,-221.11660378,0.00030136,6]
[328093074,1716845437111,-500.0,0.00030136,6]
[328093075,1716845437122,-500.0,0.00030136,6]
[328093076,1716845437130,-500.0,0.00030136,6]
[328093077,1716845437139,-500.0,0.00030136,6]
[328093078,1716845437147,-633.84549617,0.00030136,6]
[328093079,1716845437158,-500.0,0.00030136,6]
[328093080,1716845437167,-397.06897336,0.00030136,6]
[328093081,1716845437175,-500.0,0.00030136,6]
[328093082,1716845437184,-182.53851674,0.00030136,6]
[328093083,1716845437192,-500.0,0.00030136,6]
[328093084,1716845437201,-500.0,0.00030136,6]
[328093085,1716845437209,-500.0,0.00030136,6]
[328093086,1716845437218,-500.0,0.00030136,6]
[328093087,1716845437226,-500.0,0.00030136,6]
[328093088,1716845437235,-500.0,0.00030136,6]
[328093089,1716845437244,-500.0,0.00030136,6]
[328093090,1716845437252,-500.0,0.00030136,6]
[328093091,1716845437260,-500.0,0.00030136,6]
[328093092,1716845437269,-500.0,0.00030136,6]
[328093093,1716845437278,-500.0,0.00030136,6]
[328093094,1716845437288,-500.0,0.00030136,6]
[328093095,1716845437297,-500.0,0.00030136,6]
[328093096,1716845437305,-500.0,0.00030136,6]
[328093097,1716845437314,-500.0,0.00030136,6]
[328093098,1716845437323,-500.0,0.00030136,6]
[328093099,1716845437332,-500.0,0.00030136,6]
[328093100,1716845437341,-500.0,0.00030136,6]
[328093101,1716845437349,-500.0,0.00030136,6]
[328093102,1716845437358,-500.0,0.00030136,6]
[328093103,1716845437366,-500.0,0.00030136,6]
[328093104,1716845437375,-500.0,0.00030136,6]
[328093105,1716845437384,-500.0,0.00030136,6]
[328093106,1716845437392,-500.0,0.00030136,6]
[328093107,1716845437400,-500.0,0.00030136,6]
[328093108,1716845437408,-500.0,0.00030136,6]
[328093109,1716845437417,-500.0,0.00030136,6]
[328093110,1716845437425,-500.0,0.00030136,6]
[328093111,1716845437434,-500.0,0.00030136,6]
[328093112,1716845437443,-500.0,0.00030136,6]
[328093113,1716845437452,-500.0,0.00030136,6]
[328093114,1716845437458,-500.0,0.00030136,6]
[328093115,1716845437466,-500.0,0.00030136,6]
[328093116,1716845437473,-500.0,0.00030136,6]
[328093117,1716845437479,-500.0,0.00030136,6]
[328093118,1716845437485,-500.0,0.00030136,6]
[328093119,1716845437492,-500.0,0.00030136,6]
[328093120,1716845437499,-500.0,0.00030136,6]
[328093121,1716845437505,-500.0,0.00030136,6]
[328093122,1716845437512,-500.0,0.00030136,6]